[Event "Titled Tuesday Blitz July 26 Late 2022"]
[White "Ismagilov, Damir"]
[Black "Ozates, Tuna"]
[WhiteFideId "34199982"]
[BlackFideId "6354521"]
[WhiteElo "2138"]
[BlackElo "1887"]
[Result "1-0"]
[Round "06"]
[TimeControl "180+1"]
[Date "2022.07.26"]
[WhiteClock "0:00:13"]
[BlackClock "0:00:02"]

1. e4 {[%clk 0:03:00]}  e5 {[%clk 0:02:57]} 2. Nf3 {[%clk 0:03:00]}  Nc6 {[%clk 0:02:58]} 3. d4 {[%clk 0:03:01]}  exd4 {[%clk 0:02:58]} 4. Nxd4 {[%clk 0:03:02]}  Nf6 {[%clk 0:02:58]} 5. Nc3 {[%clk 0:02:59]}  Bb4 {[%clk 0:02:58]} 6. Nxc6 {[%clk 0:02:59]}  bxc6 {[%clk 0:02:59]} 7. Bd3 {[%clk 0:02:58]}  d5 {[%clk 0:02:59]} 8. exd5 {[%clk 0:02:59]}  O-O {[%clk 0:03:00]} 9. O-O {[%clk 0:03:00]}  cxd5 {[%clk 0:03:01]} 10. h3 {[%clk 0:03:00]}  c6 {[%clk 0:03:01]} 11. Bf4 {[%clk 0:03:00]}  Re8 {[%clk 0:02:56]} 12. Qf3 {[%clk 0:02:56]}  Bxc3 {[%clk 0:02:48]} 13. bxc3 {[%clk 0:02:56]}  Ne4 {[%clk 0:02:49]} 14. Rfe1 {[%clk 0:02:42]}  Bf5 {[%clk 0:02:42]} 15. c4 {[%clk 0:02:33]}  Qf6 {[%clk 0:02:34]} 16. cxd5 {[%clk 0:02:27]}  cxd5 {[%clk 0:02:32]} 17. c4 {[%clk 0:01:46]}  dxc4 {[%clk 0:02:31]} 18. Bxc4 {[%clk 0:01:43]}  Rad8 {[%clk 0:02:15]} 19. Rad1 {[%clk 0:01:34]}  Rxd1 {[%clk 0:02:11]} 20. Rxd1 {[%clk 0:01:34]}  g5 {[%clk 0:01:57]} 21. Be3 {[%clk 0:01:16]}  Bg6 {[%clk 0:01:52]} 22. Qxf6 {[%clk 0:01:04]}  Nxf6 {[%clk 0:01:53]} 23. Bxa7 {[%clk 0:01:02]}  Ne4 {[%clk 0:01:49]} 24. Be3 {[%clk 0:00:58]}  h6 {[%clk 0:01:47]} 25. a4 {[%clk 0:00:52]}  Ra8 {[%clk 0:01:46]} 26. Ra1 {[%clk 0:00:50]}  Nd6 {[%clk 0:01:44]} 27. Bd5 {[%clk 0:00:46]}  Ra5 {[%clk 0:01:42]} 28. Bc6 {[%clk 0:00:40]}  Bc2 {[%clk 0:01:35]} 29. Bb6 {[%clk 0:00:33]}  Ra6 {[%clk 0:01:35]} 30. a5 {[%clk 0:00:33]}  Kf8 {[%clk 0:01:20]} 31. Rc1 {[%clk 0:00:32]}  Bb3 {[%clk 0:01:17]} 32. Rc3 {[%clk 0:00:29]}  Be6 {[%clk 0:01:15]} 33. Bf3 {[%clk 0:00:26]}  Ke8 {[%clk 0:01:12]} 34. Be2 {[%clk 0:00:25]}  Ra8 {[%clk 0:01:12]} 35. a6 {[%clk 0:00:24]}  Nc8 {[%clk 0:01:05]} 36. Be3 {[%clk 0:00:23]}  Kd8 {[%clk 0:01:03]} 37. Kh2 {[%clk 0:00:20]}  f5 {[%clk 0:01:00]} 38. a7 {[%clk 0:00:19]}  Rxa7 {[%clk 0:00:52]} 39. Rxc8+ {[%clk 0:00:18]}  Bxc8 {[%clk 0:00:50]} 40. Bxa7 {[%clk 0:00:19]}  Ke7 {[%clk 0:00:50]} 41. Bd4 {[%clk 0:00:19]}  Kf7 {[%clk 0:00:50]} 42. g3 {[%clk 0:00:20]}  Kg6 {[%clk 0:00:50]} 43. Be3 {[%clk 0:00:20]}  h5 {[%clk 0:00:45]} 44. f4 {[%clk 0:00:20]}  gxf4 {[%clk 0:00:35]} 45. Bxf4 {[%clk 0:00:19]}  Bd7 {[%clk 0:00:35]} 46. h4 {[%clk 0:00:20]}  Bc8 {[%clk 0:00:33]} 47. Kg1 {[%clk 0:00:20]}  Bd7 {[%clk 0:00:31]} 48. Kf2 {[%clk 0:00:21]}  Bc8 {[%clk 0:00:31]} 49. Ke3 {[%clk 0:00:22]}  Bd7 {[%clk 0:00:32]} 50. Bd3 {[%clk 0:00:22]}  Bc8 {[%clk 0:00:32]} 51. Kd4 {[%clk 0:00:22]}  Bd7 {[%clk 0:00:32]} 52. Bc4 {[%clk 0:00:23]}  Bc6 {[%clk 0:00:27]} 53. Ke5 {[%clk 0:00:22]}  Be4 {[%clk 0:00:24]} 54. Be6 {[%clk 0:00:22]}  Bc2 {[%clk 0:00:23]} 55. Bd7 {[%clk 0:00:23]}  Kg7 {[%clk 0:00:13]} 56. Bxf5 {[%clk 0:00:22]}  Bb3 {[%clk 0:00:10]} 57. Be4 {[%clk 0:00:19]}  Bf7 {[%clk 0:00:09]} 58. Bg5 {[%clk 0:00:16]}  Be8 {[%clk 0:00:08]} 59. Kf4 {[%clk 0:00:16]}  Bd7 {[%clk 0:00:07]} 60. Bd8 {[%clk 0:00:16]}  Bg4 {[%clk 0:00:06]} 61. Kg5 {[%clk 0:00:16]}  Be2 {[%clk 0:00:06]} 62. Bg6 {[%clk 0:00:16]}  Bd1 {[%clk 0:00:06]} 63. Bf6+ {[%clk 0:00:17]}  Kg8 {[%clk 0:00:05]} 64. Bxh5 {[%clk 0:00:14]}  Bc2 {[%clk 0:00:05]} 65. Bg6 {[%clk 0:00:14]}  Bb3 {[%clk 0:00:02]} 66. h5 {[%clk 0:00:13]}  Bf7 {[%clk 0:00:02]} 67. h6 {[%clk 0:00:13]} 1-0


[Site "https://www.chess.com"]

[Event "Titled Tuesday Blitz July 26 Late 2022"]
[White "Kopczynski, Michal"]
[Black "Danielyan, Vahe"]
[WhiteFideId "1124200"]
[BlackFideId "13304828"]
[WhiteElo "2235"]
[BlackElo "2419"]
[Result "1-0"]
[Round "06"]
[TimeControl "180+1"]
[Date "2022.07.27"]
[WhiteClock "0:00:04"]
[BlackClock "0:00:36"]

1. e4 {[%clk 0:03:00]}  g6 {[%clk 0:02:34]} 2. d4 {[%clk 0:02:59]}  Bg7 {[%clk 0:02:34]} 3. Nc3 {[%clk 0:02:59]}  a6 {[%clk 0:02:31]} 4. Be3 {[%clk 0:03:00]}  b5 {[%clk 0:02:29]} 5. Qd2 {[%clk 0:03:00]}  Bb7 {[%clk 0:02:30]} 6. f3 {[%clk 0:03:00]}  d6 {[%clk 0:02:30]} 7. O-O-O {[%clk 0:03:00]}  Nd7 {[%clk 0:02:30]} 8. h4 {[%clk 0:03:00]}  h5 {[%clk 0:02:30]} 9. Nh3 {[%clk 0:02:56]}  Ngf6 {[%clk 0:02:29]} 10. Kb1 {[%clk 0:02:53]}  Nb6 {[%clk 0:02:29]} 11. e5 {[%clk 0:02:40]}  Nfd5 {[%clk 0:02:28]} 12. exd6 {[%clk 0:02:39]}  cxd6 {[%clk 0:02:27]} 13. Ne4 {[%clk 0:02:32]}  Rc8 {[%clk 0:02:26]} 14. Bd3 {[%clk 0:02:24]}  Nc4 {[%clk 0:02:26]} 15. Bxc4 {[%clk 0:02:19]}  bxc4 {[%clk 0:02:27]} 16. c3 {[%clk 0:02:16]}  Qb6 {[%clk 0:02:25]} 17. Rde1 {[%clk 0:02:09]}  O-O {[%clk 0:02:15]} 18. Bh6 {[%clk 0:02:02]}  Nf6 {[%clk 0:02:08]} 19. Nxf6+ {[%clk 0:01:57]}  exf6 {[%clk 0:02:07]} 20. Bxg7 {[%clk 0:01:56]}  Kxg7 {[%clk 0:02:08]} 21. Nf4 {[%clk 0:01:51]}  Qb5 {[%clk 0:02:07]} 22. Rhg1 {[%clk 0:01:41]}  Rfe8 {[%clk 0:01:55]} 23. g4 {[%clk 0:01:27]}  Rxe1+ {[%clk 0:01:54]} 24. Rxe1 {[%clk 0:01:25]}  Bxf3 {[%clk 0:01:53]} 25. gxh5 {[%clk 0:01:23]}  Bxh5 {[%clk 0:01:54]} 26. d5 {[%clk 0:01:12]}  Bg4 {[%clk 0:01:52]} 27. h5 {[%clk 0:01:08]}  Re8 {[%clk 0:01:49]} 28. hxg6 {[%clk 0:01:02]}  fxg6 {[%clk 0:01:47]} 29. Rg1 {[%clk 0:00:49]}  Bf5+ {[%clk 0:01:45]} 30. Ka1 {[%clk 0:00:46]}  Qc5 {[%clk 0:01:46]} 31. Qg2 {[%clk 0:00:27]}  Qe3 {[%clk 0:01:45]} 32. Ne6+ {[%clk 0:00:20]}  Rxe6 {[%clk 0:01:45]} 33. dxe6 {[%clk 0:00:19]}  Qxe6 {[%clk 0:01:45]} 34. Qb7+ {[%clk 0:00:18]}  Qf7 {[%clk 0:01:39]} 35. Qxa6 {[%clk 0:00:17]}  g5 {[%clk 0:01:39]} 36. a4 {[%clk 0:00:16]}  Bd3 {[%clk 0:01:36]} 37. a5 {[%clk 0:00:16]}  Qd5 {[%clk 0:01:34]} 38. Qb6 {[%clk 0:00:14]}  Qa8 {[%clk 0:01:16]} 39. a6 {[%clk 0:00:14]}  Qe8 {[%clk 0:01:17]} 40. Qa5 {[%clk 0:00:09]}  Qe3 {[%clk 0:01:14]} 41. Rh1 {[%clk 0:00:08]}  Qa7 {[%clk 0:00:59]} 42. Re1 {[%clk 0:00:08]}  g4 {[%clk 0:00:59]} 43. Qb5 {[%clk 0:00:07]}  Qf2 {[%clk 0:00:56]} 44. Qb7+ {[%clk 0:00:05]}  Kg6 {[%clk 0:00:55]} 45. Rh1 {[%clk 0:00:04]}  Kg5 {[%clk 0:00:37]} 46. a7 {[%clk 0:00:04]}  g3 {[%clk 0:00:36]} 47. a8=Q {[%clk 0:00:04]} 1-0


[Site "https://www.chess.com"]

[Event "Titled Tuesday Blitz July 26 Late 2022"]
[White "Korchmar, Vasiliy"]
[Black "Eswaran, Ashritha"]
[WhiteFideId "24131750"]
[BlackFideId "2080788"]
[WhiteElo "2370"]
[BlackElo "2458"]
[Result "0-1"]
[Round "06"]
[TimeControl "180+1"]
[Date "2022.07.27"]
[WhiteClock "0:00:01"]
[BlackClock "0:00:49"]

1. e4 {[%clk 0:03:00]}  c6 {[%clk 0:02:57]} 2. d4 {[%clk 0:03:00]}  d5 {[%clk 0:02:57]} 3. e5 {[%clk 0:03:01]}  Bf5 {[%clk 0:02:57]} 4. c4 {[%clk 0:03:01]}  e6 {[%clk 0:02:56]} 5. Nc3 {[%clk 0:03:02]}  Ne7 {[%clk 0:02:55]} 6. a3 {[%clk 0:03:02]}  Nd7 {[%clk 0:02:54]} 7. cxd5 {[%clk 0:02:51]}  cxd5 {[%clk 0:02:50]} 8. Nge2 {[%clk 0:02:50]}  h5 {[%clk 0:02:48]} 9. h4 {[%clk 0:02:42]}  a6 {[%clk 0:02:48]} 10. Ng3 {[%clk 0:02:42]}  Bg6 {[%clk 0:02:47]} 11. Bd3 {[%clk 0:02:37]}  Bxd3 {[%clk 0:02:45]} 12. Qxd3 {[%clk 0:02:38]}  g6 {[%clk 0:02:46]} 13. Bg5 {[%clk 0:02:33]}  Qa5 {[%clk 0:02:44]} 14. O-O {[%clk 0:02:30]}  Nf5 {[%clk 0:02:43]} 15. Nxf5 {[%clk 0:02:28]}  gxf5 {[%clk 0:02:43]} 16. b4 {[%clk 0:02:25]}  Qb6 {[%clk 0:02:42]} 17. Rfc1 {[%clk 0:02:25]}  Be7 {[%clk 0:02:39]} 18. Bxe7 {[%clk 0:01:49]}  Kxe7 {[%clk 0:02:35]} 19. Na4 {[%clk 0:01:50]}  Qd8 {[%clk 0:02:09]} 20. b5 {[%clk 0:01:49]}  Qa5 {[%clk 0:02:06]} 21. Nc5 {[%clk 0:01:38]}  Nxc5 {[%clk 0:01:59]} 22. Rxc5 {[%clk 0:01:37]}  Rhc8 {[%clk 0:01:56]} 23. bxa6 {[%clk 0:01:25]}  Qxa6 {[%clk 0:01:51]} 24. Qc3 {[%clk 0:01:18]}  Rxc5 {[%clk 0:01:47]} 25. Qxc5+ {[%clk 0:01:19]}  Ke8 {[%clk 0:01:44]} 26. Qc1 {[%clk 0:00:45]}  Qc4 {[%clk 0:01:42]} 27. Qh6 {[%clk 0:00:44]}  Qxd4 {[%clk 0:01:40]} 28. Re1 {[%clk 0:00:37]}  Rxa3 {[%clk 0:01:36]} 29. Qh8+ {[%clk 0:00:33]}  Ke7 {[%clk 0:01:35]} 30. Qf6+ {[%clk 0:00:32]}  Ke8 {[%clk 0:01:33]} 31. Qh8+ {[%clk 0:00:26]}  Kd7 {[%clk 0:01:28]} 32. Qxh5 {[%clk 0:00:27]}  Ke7 {[%clk 0:01:22]} 33. Qg5+ {[%clk 0:00:28]}  Ke8 {[%clk 0:01:16]} 34. h5 {[%clk 0:00:27]}  Ra1 {[%clk 0:01:12]} 35. Rxa1 {[%clk 0:00:10]}  Qxa1+ {[%clk 0:01:13]} 36. Kh2 {[%clk 0:00:11]}  Qxe5+ {[%clk 0:01:13]} 37. f4 {[%clk 0:00:12]}  Qh8 {[%clk 0:01:10]} 38. h6 {[%clk 0:00:12]}  f6 {[%clk 0:01:04]} 39. Qg6+ {[%clk 0:00:11]}  Kf8 {[%clk 0:01:03]} 40. h7 {[%clk 0:00:08]}  b5 {[%clk 0:00:58]} 41. Kg1 {[%clk 0:00:03]}  b4 {[%clk 0:00:58]} 42. Qh6+ {[%clk 0:00:01]}  Kf7 {[%clk 0:00:56]} 43. Kf2 {[%clk 0:00:01]}  b3 {[%clk 0:00:54]} 44. g3 {[%clk 0:00:01]}  b2 {[%clk 0:00:53]} 45. Qh1 {[%clk 0:00:01]}  Kg7 {[%clk 0:00:50]} 46. Qb1 {[%clk 0:00:01]}  Qb8 {[%clk 0:00:49]} 0-1


[Site "https://www.chess.com"]

[Event "Titled Tuesday Blitz July 26 Late 2022"]
[White "Leitao, Rafael"]
[Black "Souleidis, Georgios"]
[WhiteFideId "2101246"]
[BlackFideId "4206827"]
[WhiteElo "2609"]
[BlackElo "2401"]
[Result "0-1"]
[Round "06"]
[TimeControl "180+1"]
[Date "2022.07.26"]
[WhiteClock "0:00:02"]
[BlackClock "0:00:05"]

1. c4 {[%clk 0:03:00]}  e5 {[%clk 0:02:59]} 2. Nc3 {[%clk 0:02:58]}  Nc6 {[%clk 0:02:59]} 3. Nf3 {[%clk 0:02:57]}  Nf6 {[%clk 0:02:59]} 4. e4 {[%clk 0:02:57]}  Bb4 {[%clk 0:02:58]} 5. d3 {[%clk 0:02:55]}  d6 {[%clk 0:02:58]} 6. a3 {[%clk 0:02:54]}  Bc5 {[%clk 0:02:57]} 7. b4 {[%clk 0:02:54]}  Bd4 {[%clk 0:02:57]} 8. Nxd4 {[%clk 0:02:52]}  Nxd4 {[%clk 0:02:58]} 9. Ne2 {[%clk 0:02:49]}  Bg4 {[%clk 0:02:53]} 10. f3 {[%clk 0:02:35]}  Nxe2 {[%clk 0:02:44]} 11. Bxe2 {[%clk 0:02:32]}  Be6 {[%clk 0:02:43]} 12. d4 {[%clk 0:02:31]}  c6 {[%clk 0:02:42]} 13. O-O {[%clk 0:02:29]}  O-O {[%clk 0:02:41]} 14. Bb2 {[%clk 0:02:28]}  Qc7 {[%clk 0:02:34]} 15. Qd2 {[%clk 0:02:22]}  Rad8 {[%clk 0:02:16]} 16. Rac1 {[%clk 0:02:11]}  Rfe8 {[%clk 0:02:15]} 17. Rfd1 {[%clk 0:02:06]}  Bc8 {[%clk 0:02:13]} 18. Qc3 {[%clk 0:01:57]}  Qe7 {[%clk 0:02:08]} 19. Rd2 {[%clk 0:01:42]}  Nh5 {[%clk 0:01:42]} 20. Rcd1 {[%clk 0:01:18]}  Nf4 {[%clk 0:01:37]} 21. Bf1 {[%clk 0:01:16]}  Ng6 {[%clk 0:01:35]} 22. c5 {[%clk 0:01:09]}  f6 {[%clk 0:01:19]} 23. cxd6 {[%clk 0:01:06]}  Rxd6 {[%clk 0:01:20]} 24. dxe5 {[%clk 0:00:52]}  Rxd2 {[%clk 0:01:20]} 25. Qxd2 {[%clk 0:00:50]}  Nxe5 {[%clk 0:01:08]} 26. f4 {[%clk 0:00:44]}  Ng6 {[%clk 0:01:06]} 27. Bc4+ {[%clk 0:00:44]}  Kh8 {[%clk 0:00:52]} 28. Re1 {[%clk 0:00:24]}  Qc7 {[%clk 0:00:41]} 29. g3 {[%clk 0:00:23]}  Bg4 {[%clk 0:00:33]} 30. Kg2 {[%clk 0:00:20]}  Rd8 {[%clk 0:00:33]} 31. Qe3 {[%clk 0:00:19]}  Qd7 {[%clk 0:00:29]} 32. Bc3 {[%clk 0:00:20]}  Bh3+ {[%clk 0:00:23]} 33. Kg1 {[%clk 0:00:19]}  Bg4 {[%clk 0:00:23]} 34. e5 {[%clk 0:00:17]}  fxe5 {[%clk 0:00:23]} 35. fxe5 {[%clk 0:00:17]}  Be6 {[%clk 0:00:23]} 36. Bf1 {[%clk 0:00:15]}  Re8 {[%clk 0:00:20]} 37. Bg2 {[%clk 0:00:15]}  Qe7 {[%clk 0:00:20]} 38. Rd1 {[%clk 0:00:14]}  Rd8 {[%clk 0:00:20]} 39. Re1 {[%clk 0:00:13]}  a6 {[%clk 0:00:19]} 40. h3 {[%clk 0:00:14]}  Qd7 {[%clk 0:00:18]} 41. Kh2 {[%clk 0:00:14]}  Kg8 {[%clk 0:00:18]} 42. h4 {[%clk 0:00:11]}  Nf8 {[%clk 0:00:18]} 43. h5 {[%clk 0:00:12]}  Qd3 {[%clk 0:00:18]} 44. Be4 {[%clk 0:00:10]}  Qxe3 {[%clk 0:00:18]} 45. Rxe3 {[%clk 0:00:10]}  Bd5 {[%clk 0:00:12]} 46. Bc2 {[%clk 0:00:10]}  Ne6 {[%clk 0:00:12]} 47. a4 {[%clk 0:00:09]}  Rf8 {[%clk 0:00:11]} 48. Bd1 {[%clk 0:00:07]}  Rf1 {[%clk 0:00:10]} 49. Re1 {[%clk 0:00:07]}  Rf2+ {[%clk 0:00:10]} 50. Kh3 {[%clk 0:00:08]}  h6 {[%clk 0:00:09]} 51. Kg4 {[%clk 0:00:07]}  Rf8 {[%clk 0:00:08]} 52. Bd2 {[%clk 0:00:03]}  Nd4 {[%clk 0:00:08]} 53. Bf4 {[%clk 0:00:02]}  Be6+ {[%clk 0:00:08]} 54. Kh4 {[%clk 0:00:02]}  Nf5+ {[%clk 0:00:08]} 55. Kh3 {[%clk 0:00:02]}  Ne7+ {[%clk 0:00:09]} 56. Kh2 {[%clk 0:00:02]}  Nd5 {[%clk 0:00:09]} 57. Bd2 {[%clk 0:00:02]}  Rf2+ {[%clk 0:00:09]} 58. Kg1 {[%clk 0:00:02]}  Rxd2 {[%clk 0:00:10]} 59. Bf3 {[%clk 0:00:03]}  Rd3 {[%clk 0:00:09]} 60. Be4 {[%clk 0:00:03]}  Rxg3+ {[%clk 0:00:09]} 61. Kf2 {[%clk 0:00:03]}  Rg5 {[%clk 0:00:10]} 62. b5 {[%clk 0:00:03]}  Rxe5 {[%clk 0:00:09]} 63. Bh7+ {[%clk 0:00:02]}  Kxh7 {[%clk 0:00:07]} 64. Rxe5 {[%clk 0:00:03]}  Bf7 {[%clk 0:00:07]} 65. bxa6 {[%clk 0:00:03]}  bxa6 {[%clk 0:00:08]} 66. Re4 {[%clk 0:00:03]}  Bxh5 {[%clk 0:00:07]} 67. Rc4 {[%clk 0:00:04]}  Be8 {[%clk 0:00:07]} 68. Rc5 {[%clk 0:00:04]}  Nb4 {[%clk 0:00:06]} 69. Re5 {[%clk 0:00:04]}  Bf7 {[%clk 0:00:05]} 70. Re7 {[%clk 0:00:04]}  Bd5 {[%clk 0:00:05]} 71. Ke3 {[%clk 0:00:04]}  Kg6 {[%clk 0:00:05]} 72. Kd4 {[%clk 0:00:05]}  h5 {[%clk 0:00:04]} 73. Kc5 {[%clk 0:00:05]}  Nd3+ {[%clk 0:00:04]} 74. Kb6 {[%clk 0:00:05]}  h4 {[%clk 0:00:04]} 75. Kxa6 {[%clk 0:00:05]}  Nf4 {[%clk 0:00:04]} 76. Re1 {[%clk 0:00:02]}  h3 {[%clk 0:00:04]} 77. Kb6 {[%clk 0:00:03]}  h2 {[%clk 0:00:04]} 78. a5 {[%clk 0:00:02]}  c5 {[%clk 0:00:04]} 79. Kxc5 {[%clk 0:00:02]}  h1=Q {[%clk 0:00:04]} 80. Rxh1 {[%clk 0:00:02]}  Bxh1 {[%clk 0:00:05]} 0-1


[Site "https://www.chess.com"]

[Event "Titled Tuesday Blitz July 26 Late 2022"]
[White "Nagy, Gabor"]
[Black "Daggupati, Balaji"]
[WhiteFideId "737119"]
[BlackFideId "2090759"]
[WhiteElo "2530"]
[BlackElo "2716"]
[Result "1-0"]
[Round "06"]
[TimeControl "180+1"]
[Date "2022.07.26"]
[WhiteClock "0:01:22"]
[BlackClock "0:00:25"]

1. c4 {[%clk 0:03:00]}  e5 {[%clk 0:03:00]} 2. Nc3 {[%clk 0:03:00]}  Nf6 {[%clk 0:03:01]} 3. Nf3 {[%clk 0:03:01]}  Nc6 {[%clk 0:03:00]} 4. e4 {[%clk 0:03:01]}  Bb4 {[%clk 0:03:00]} 5. d3 {[%clk 0:02:59]}  Be7 {[%clk 0:02:59]} 6. d4 {[%clk 0:02:57]}  exd4 {[%clk 0:02:55]} 7. Nxd4 {[%clk 0:02:57]}  Bb4 {[%clk 0:02:51]} 8. Nc2 {[%clk 0:02:52]}  Bxc3+ {[%clk 0:02:44]} 9. bxc3 {[%clk 0:02:53]}  Nxe4 {[%clk 0:02:38]} 10. Qg4 {[%clk 0:02:48]}  O-O {[%clk 0:02:36]} 11. Bd3 {[%clk 0:02:43]}  f5 {[%clk 0:02:33]} 12. Qh3 {[%clk 0:02:34]}  Qf6 {[%clk 0:02:11]} 13. O-O {[%clk 0:02:25]}  d6 {[%clk 0:02:06]} 14. Bb2 {[%clk 0:02:20]}  f4 {[%clk 0:02:02]} 15. Qh5 {[%clk 0:02:15]}  Bf5 {[%clk 0:01:57]} 16. Nd4 {[%clk 0:02:01]}  Bg6 {[%clk 0:01:53]} 17. Qd5+ {[%clk 0:02:00]}  Kh8 {[%clk 0:01:11]} 18. Bxe4 {[%clk 0:01:59]}  Ne7 {[%clk 0:01:05]} 19. Qe6 {[%clk 0:01:44]}  Qg5 {[%clk 0:00:50]} 20. Nf3 {[%clk 0:01:41]}  Qc5 {[%clk 0:00:42]} 21. Qxe7 {[%clk 0:01:36]}  Rae8 {[%clk 0:00:41]} 22. Qg5 {[%clk 0:01:26]}  Rxe4 {[%clk 0:00:40]} 23. Qxc5 {[%clk 0:01:26]}  dxc5 {[%clk 0:00:41]} 24. Rfe1 {[%clk 0:01:26]}  Rxc4 {[%clk 0:00:41]} 25. Ne5 {[%clk 0:01:26]}  Ra4 {[%clk 0:00:40]} 26. c4 {[%clk 0:01:25]}  Bf5 {[%clk 0:00:36]} 27. a3 {[%clk 0:01:22]}  Ra6 {[%clk 0:00:34]} 28. Rad1 {[%clk 0:01:22]}  Rb6 {[%clk 0:00:35]} 29. Ba1 {[%clk 0:01:22]}  Re8 {[%clk 0:00:29]} 30. Nf7+ {[%clk 0:01:22]}  Kg8 {[%clk 0:00:28]} 31. Rxe8+ {[%clk 0:01:23]}  Kxf7 {[%clk 0:00:29]} 32. Re5 {[%clk 0:01:23]}  Bc2 {[%clk 0:00:27]} 33. Rde1 {[%clk 0:01:23]}  Rb3 {[%clk 0:00:26]} 34. Re7+ {[%clk 0:01:23]}  Kf8 {[%clk 0:00:26]} 35. Rxc7 {[%clk 0:01:22]}  Rxa3 {[%clk 0:00:26]} 36. Bxg7+ {[%clk 0:01:22]}  Kg8 {[%clk 0:00:25]} 37. Re8# {[%clk 0:01:22]} 1-0


[Site "https://www.chess.com"]

[Event "Titled Tuesday Blitz July 26 Late 2022"]
[White "Oparin, Grigoriy"]
[Black "Aravindh, Chithambaram VR."]
[WhiteFideId "24125890"]
[BlackFideId "5072786"]
[WhiteElo "2639"]
[BlackElo "2577"]
[Result "1-0"]
[Round "06"]
[TimeControl "180+1"]
[Date "2022.07.26"]
[WhiteClock "0:00:18"]
[BlackClock "0:00:02"]

1. c4 {[%clk 0:03:00]}  d6 {[%clk 0:02:59]} 2. Nc3 {[%clk 0:03:01]}  c5 {[%clk 0:02:58]} 3. g3 {[%clk 0:03:01]}  g6 {[%clk 0:02:56]} 4. Bg2 {[%clk 0:03:02]}  Bg7 {[%clk 0:02:56]} 5. b3 {[%clk 0:03:02]}  e5 {[%clk 0:02:55]} 6. Bb2 {[%clk 0:03:01]}  Ne7 {[%clk 0:02:56]} 7. e3 {[%clk 0:03:02]}  Nbc6 {[%clk 0:02:56]} 8. Nge2 {[%clk 0:03:02]}  h5 {[%clk 0:02:56]} 9. h3 {[%clk 0:03:02]}  Be6 {[%clk 0:02:53]} 10. d3 {[%clk 0:03:00]}  Qd7 {[%clk 0:02:50]} 11. a3 {[%clk 0:03:00]}  d5 {[%clk 0:02:48]} 12. cxd5 {[%clk 0:02:55]}  Nxd5 {[%clk 0:02:49]} 13. Ne4 {[%clk 0:02:53]}  Qe7 {[%clk 0:02:46]} 14. Rc1 {[%clk 0:02:45]}  b6 {[%clk 0:02:41]} 15. b4 {[%clk 0:02:45]}  h4 {[%clk 0:02:37]} 16. bxc5 {[%clk 0:02:41]}  O-O {[%clk 0:02:37]} 17. cxb6 {[%clk 0:02:38]}  Rfc8 {[%clk 0:02:26]} 18. Nc5 {[%clk 0:02:26]}  hxg3 {[%clk 0:02:08]} 19. Nxg3 {[%clk 0:02:24]}  axb6 {[%clk 0:02:02]} 20. Nxe6 {[%clk 0:02:24]}  Qxe6 {[%clk 0:02:03]} 21. O-O {[%clk 0:02:24]}  Nce7 {[%clk 0:01:56]} 22. Ne4 {[%clk 0:02:09]}  Nf5 {[%clk 0:01:52]} 23. Ng5 {[%clk 0:02:04]}  Qe7 {[%clk 0:01:51]} 24. Bxd5 {[%clk 0:01:55]}  Qxg5+ {[%clk 0:01:48]} 25. Qg4 {[%clk 0:01:55]}  Qd8 {[%clk 0:01:28]} 26. Bxa8 {[%clk 0:01:53]}  Rxa8 {[%clk 0:01:29]} 27. Rfd1 {[%clk 0:01:39]}  Nh6 {[%clk 0:01:17]} 28. Qe4 {[%clk 0:01:36]}  Ra5 {[%clk 0:00:53]} 29. Rc6 {[%clk 0:01:31]}  Qg5+ {[%clk 0:00:47]} 30. Kh2 {[%clk 0:01:17]}  Qh5 {[%clk 0:00:47]} 31. Re1 {[%clk 0:01:01]}  Kh7 {[%clk 0:00:40]} 32. Rc7 {[%clk 0:01:00]}  Rb5 {[%clk 0:00:13]} 33. Bc3 {[%clk 0:01:00]}  Rb3 {[%clk 0:00:13]} 34. a4 {[%clk 0:00:59]}  Ra3 {[%clk 0:00:12]} 35. Bb2 {[%clk 0:00:50]}  Ra2 {[%clk 0:00:11]} 36. Rc2 {[%clk 0:00:51]}  f5 {[%clk 0:00:09]} 37. Qd5 {[%clk 0:00:41]}  e4 {[%clk 0:00:03]} 38. Qxa2 {[%clk 0:00:25]}  Ng4+ {[%clk 0:00:03]} 39. Kg2 {[%clk 0:00:25]}  Ne5 {[%clk 0:00:02]} 40. Bxe5 {[%clk 0:00:21]}  Qf3+ {[%clk 0:00:02]} 41. Kg1 {[%clk 0:00:21]}  Bxe5 {[%clk 0:00:02]} 42. Qf7+ {[%clk 0:00:20]}  Kh6 {[%clk 0:00:02]} 43. Qf8+ {[%clk 0:00:20]}  Bg7 {[%clk 0:00:02]} 44. Qd6 {[%clk 0:00:18]}  exd3 {[%clk 0:00:02]} 45. Rd2 {[%clk 0:00:18]} 1-0


[Site "https://www.chess.com"]